lending/lending_fUSD_20251111
["ID","MTS","AMOUNT","RATE_DAILY","PERIOD"]
[393617874,1762857040722,-232.0482225,0.00038861,11]
[393617875,1762857040731,-232.0482225,0.00038861,11]
[393617876,1762857040740,-232.0482225,0.00038861,11]
[393617877,1762857040749,-232.0482225,0.00038861,11]
[393617878,1762857040758,-232.0482225,0.00038861,11]
[393617879,1762857040768,-232.0482225,0.00038861,11]
[393617880,1762857040777,-232.0482225,0.00038861,11]
[393617881,1762857040787,-232.0482225,0.00038861,11]
[393617882,1762857040796,-232.0482225,0.00038861,11]
[393617883,1762857040806,-232.0482225,0.00038861,11]
[393617884,1762857040852,-232.0482225,0.00038861,11]
[393617885,1762857040862,-232.0482225,0.00038861,11]
[393617886,1762857040872,-232.0482225,0.00038861,11]
[393617887,1762857040883,-11198.9020093,0.000389,60]
[393617888,1762857040892,-364.09596743,0.000389,120]
[393617889,1762857040902,-204.43952516,0.00038904,5]
[393617890,1762857040911,-211.0,0.0003891,30]
[393617891,1762857040920,-1000.0,0.00038912,7]
[393617892,1762857040929,-1000.0,0.00038942,7]
[393617893,1762857040938,-168.0,0.00038961,2]
[393617894,1762857040947,-1918.07331147,0.00038983,2]
[393617895,1762857040957,-217.96580628,0.00038987,2]
[393617896,1762857040966,-2149.45206844,0.00038999,2]
[393617897,1762857040975,-1000.57157631,0.00039,2]
[393617898,1762857040984,-172.58398853,0.00039,10]
[393617899,1762857040993,-933.695199,0.00039,10]
[393617900,1762857041003,-1570.09348638,0.00039,120]
[393617901,1762857041013,-514.30289769,0.00039,120]
[393617902,1762857041023,-1004.26378447,0.00039,7]
[393617903,1762857041032,-1241.0,0.00039,7]
[393617904,1762857041043,-1161.64851535,0.00039036,2]
[393617905,1762857041060,-300.0,0.0003904,2]
[393617906,1762857041069,-300.0,0.00039044,2]
[393617907,1762857041079,-394.28440801,0.00039052,2]
[393617908,1762857041089,-189.98,0.00039068,2]
[393617909,1762857041098,-300.0,0.00039071,2]
[393617910,1762857041108,-300.0,0.0003911,2]
[393617911,1762857041118,-300.0,0.00039116,2]
[393617912,1762857041130,-150.0,0.00039126,7]
[393617913,1762857041140,-150.0,0.00039127,7]
[393617914,1762857041150,-1442.82979256,0.0003913,2]
[393617915,1762857041159,-300.0,0.00039136,2]
[393617916,1762857041168,-189.98,0.00039136,2]
[393617917,1762857041177,-300.0,0.00039139,2]
[393617918,1762857041187,-300.0,0.00039147,2]
[393617919,1762857041196,-2025.91679083,0.00039151,2]
[393617920,1762857041205,-300.0,0.00039156,2]
[393617921,1762857041214,-300.0,0.00039162,2]
[393617922,1762857041223,-300.0,0.00039166,2]
[393617923,1762857041232,-1000.0,0.00039172,7]
[393617924,1762857041241,-300.0,0.00039174,2]
[393617925,1762857041251,-300.0,0.00039188,2]
[393617926,1762857041260,-150.0,0.00039189,7]
[393617927,1762857041271,-1000.0,0.00039192,7]
[393617928,1762857041280,-300.0,0.00039195,2]
[393617929,1762857041290,-1000.0,0.000392,7]
[393617930,1762857041298,-300.0,0.00039204,2]
[393617931,1762857041307,-300.0,0.00039204,2]
[393617932,1762857041317,-300.0,0.00039207,2]
[393617933,1762857041326,-300.0,0.00039209,2]
[393617934,1762857041335,-300.0,0.00039213,2]
[393617935,1762857041344,-1000.0,0.00039213,7]
[393617936,1762857041354,-150.0,0.00039216,7]
[393617937,1762857041363,-300.0,0.00039217,2]
[393617938,1762857041372,-150.0,0.00039218,7]
[393617939,1762857041382,-300.0,0.00039219,2]
[393617940,1762857041391,-150.0,0.00039225,7]
[393617941,1762857041400,-1442.82979256,0.00039239,2]
[393617942,1762857041410,-150.0,0.00039241,7]
[393617943,1762857041421,-300.0,0.00039242,2]
[393617944,1762857041430,-300.0,0.00039242,2]
[393617945,1762857041439,-300.0,0.00039247,2]
[393617946,1762857041448,-300.0,0.00039254,2]
[393617947,1762857041459,-150.0,0.00039262,7]
[393617948,1762857041468,-300.0,0.00039268,2]
[393617949,1762857041478,-300.0,0.0003927,2]
[393617950,1762857041489,-150.0,0.00039272,7]
[393617951,1762857041500,-150.0,0.00039285,7]
[393617952,1762857041509,-150.0,0.0003929,7]
[393617953,1762857041519,-217.96580628,0.00039295,2]
[393617954,1762857041527,-1600.0,0.000393,14]
[393617955,1762857041536,-300.0,0.00039301,2]
[393617956,1762857041546,-300.0,0.00039306,2]
[393617957,1762857041555,-150.0,0.00039307,7]
[393617958,1762857041564,-2133.76027019,0.00039318,2]
[393617959,1762857041573,-150.0,0.00039322,7]
[393617960,1762857041582,-322.29297541,0.00039325,2]
[393617961,1762857041592,-300.0,0.00039328,2]
[393617962,1762857041601,-44894.5778389,0.0003933,2]
[393617963,1762857041610,-1884.63748,0.0003933,2]
[393617964,1762857041619,-300.0,0.00039331,2]
[393617965,1762857041627,-300.0,0.00039332,2]
[393617966,1762857041638,-150.0,0.00039337,7]
[393617967,1762857041647,-394.28440801,0.0003934,2]
[393617968,1762857041657,-300.0,0.00039344,2]
[393617969,1762857041665,-300.0,0.0003935,2]
[393617970,1762857041675,-300.0,0.00039357,2]
[393617971,1762857041684,-300.0,0.00039363,2]
[393617972,1762857041693,-300.0,0.00039365,95]
[393617973,1762857041703,-171.62032392,0.00039369,13]
[393617974,1762857041712,-990.0,0.00039377,2]
[393617975,1762857041723,-300.0,0.00039383,2]
[393617976,1762857041732,-300.0,0.00039388,2]
[393617977,1762857041741,-990.0,0.0003939,7]
[393617978,1762857041751,-300.0,0.00039391,2]
[393617979,1762857041760,-300.0,0.00039399,2]
[393617980,1762857041770,-150.0,0.00039399,20]
[393617981,1762857041779,-300.0,0.000394,14]
[393617982,1762857041788,-502.12,0.00039404,2]
[393617983,1762857041798,-150.0,0.00039405,2]
[393617984,1762857041807,-1933.66,0.00039405,2]
[393617985,1762857041816,-150.0,0.00039405,2]
[393617986,1762857041825,-1098.26,0.00039405,2]
[393617987,1762857041834,-317.11,0.00039405,2]
[393617988,1762857041844,-150.0,0.00039405,2]
[393617989,1762857041853,-150.0,0.00039405,2]
[393617990,1762857041862,-150.0,0.00039405,2]
[393617991,1762857041872,-290.08,0.00039405,2]
[393617992,1762857041881,-300.0,0.0003941,2]
[393617993,1762857041891,-300.0,0.0003941,2]
[393617994,1762857041900,-2500.0,0.00039416,14]
[393617995,1762857041909,-300.0,0.00039422,2]
[393617996,1762857041919,-200.0,0.00039422,20]
[393617997,1762857041928,-2500.0,0.00039425,14]
[393617998,1762857041937,-300.0,0.00039425,2]
[393617999,1762857041946,-200.0,0.00039428,20]
[393618000,1762857041955,-4801.67154416,0.00039428,2]
[393618001,1762857041964,-200.0,0.00039432,20]
[393618002,1762857041973,-2500.0,0.00039434,14]
[393618003,1762857041983,-300.0,0.00039438,2]
[393618004,1762857041992,-2500.0,0.00039442,14]
[393618005,1762857042001,-2500.0,0.00039451,14]
[393618006,1762857042010,-1000.0,0.00039452,120]
[393618007,1762857042021,-1000.0,0.00039452,120]
[393618008,1762857042030,-1000.0,0.00039452,120]
[393618009,1762857042040,-1000.0,0.00039452,120]
[393618010,1762857042053,-585.19739311,0.00039452,120]
[393618011,1762857042062,-2500.0,0.0003946,14]
[393618012,1762857042072,-300.0,0.00039461,2]
[393618013,1762857042083,-300.0,0.00039464,2]
[393618014,1762857042092,-300.0,0.00039465,2]
[393618015,1762857042103,-191.57459816,0.00039465,2]
[393618016,1762857042113,-5154.89989462,0.00039465,2]
[393618017,1762857042127,-2500.0,0.00039469,14]
[393618018,1762857042137,-300.0,0.00039471,2]
[393618019,1762857042146,-254.22527131,0.00039475,2]
[393618020,1762857042155,-2500.0,0.00039478,14]
[393618021,1762857042165,-300.0,0.00039478,2]
[393618022,1762857042174,-300.0,0.00039485,2]
[393618023,1762857042183,-2241.60374955,0.00039486,2]
[393618024,1762857042192,-2500.0,0.00039486,14]
[393618025,1762857042201,-2500.0,0.00039495,14]
[393618026,1762857042211,-300.0,0.00039497,2]
[393618027,1762857042220,-150.0,0.00039499,7]
[393618028,1762857042229,-300.0,0.000395,14]
[393618029,1762857042238,-300.0,0.00039501,2]
[393618030,1762857042248,-2500.0,0.00039504,14]
[393618031,1762857042258,-300.0,0.00039509,2]
[393618032,1762857042268,-2500.0,0.00039513,14]
[393618033,1762857042277,-300.0,0.00039515,2]
[393618034,1762857042286,-150.0,0.00039519,7]
[393618035,1762857042295,-335.4112503,0.00039521,8]
[393618036,1762857042305,-2500.0,0.00039522,14]
[393618037,1762857042319,-217.96580629,0.00039525,2]
[393618038,1762857042329,-151.0,0.00039525,14]
[393618039,1762857042338,-300.0,0.00039529,2]
[393618040,1762857042347,-2500.0,0.0003953,14]
[393618041,1762857042356,-300.0,0.00039532,2]
[393618042,1762857042365,-300.0,0.00039537,2]
[393618043,1762857042374,-300.0,0.00039539,2]
[393618044,1762857042383,-2500.0,0.00039539,14]
[393618045,1762857042393,-150.0,0.00039542,7]
[393618046,1762857042402,-2500.0,0.00039548,14]
[393618047,1762857042411,-300.0,0.0003955,2]
[393618048,1762857042420,-254.22527129,0.00039552,2]
[393618049,1762857042430,-2500.0,0.00039557,14]
[393618050,1762857042439,-2500.0,0.00039566,14]
[393618051,1762857042448,-2000.0,0.00039566,3]
[393618052,1762857042457,-2000.0,0.00039566,3]
[393618053,1762857042468,-150.0,0.00039567,7]
[393618054,1762857042478,-2500.0,0.00039574,14]
[393618055,1762857042487,-2500.0,0.00039574,14]
[393618056,1762857042497,-300.0,0.00039575,2]
[393618057,1762857042508,-150.0,0.00039575,7]
[393618058,1762857042518,-300.0,0.00039576,2]
[393618059,1762857042528,-300.0,0.00039576,2]
[393618060,1762857042537,-2500.0,0.00039583,14]
[393618061,1762857042547,-2500.0,0.00039583,14]
[393618062,1762857042556,-300.0,0.0003959,2]
[393618063,1762857042566,-2500.0,0.00039592,14]
[393618064,1762857042575,-2500.0,0.00039592,14]
[393618065,1762857042585,-150.0,0.00039598,7]
[393618067,1762857042595,-2000.0,0.00039599,2]
[393618068,1762857042604,-1000.0,0.000396,7]
[393618069,1762857042615,-5193.33,0.000396,30]
[393618070,1762857042625,-300.0,0.000396,14]
[393618071,1762857042635,-300.0,0.00039603,2]
[393618072,1762857042644,-191.57459815,0.00039613,2]
[393618073,1762857042653,-5154.89989462,0.00039613,2]
[393618074,1762857042663,-2108305.477782,0.00039618,30]
[393618075,1762857042672,-300.0,0.00039621,2]
[393618076,1762857042683,-394.28440801,0.00039628,2]
[393618077,1762857042699,-2208.99252286,0.00039628,2]
[393618078,1762857042709,-619.59008654,0.00039628,2]
[393618079,1762857042717,-254.22527129,0.00039628,2]
[393618080,1762857042727,-1442.82979259,0.0003963,2]
[393618081,1762857042736,-3277.0,0.00039639,5]
[393618082,1762857042745,-335.41125028,0.00039641,8]
[393618083,1762857042754,-150.0,0.00039646,7]
[393618084,1762857042765,-300.0,0.00039646,2]
[393618085,1762857042774,-300.0,0.00039647,2]
[393618086,1762857042783,-280.93,0.00039654,2]
[393618087,1762857042793,-2349.44722891,0.00039654,2]
[393618088,1762857042802,-300.0,0.00039655,2]
[393618089,1762857042812,-300.0,0.00039656,2]
[393618090,1762857042821,-150.0,0.00039663,7]
[393618091,1762857042831,-400.0,0.0003967,2]
[393618092,1762857042841,-1200.0,0.0003967,2]
[393618093,1762857042850,-300.0,0.00039678,2]
[393618094,1762857042860,-150.0,0.00039681,41]
[393618095,1762857042870,-150.0,0.00039681,41]
[393618096,1762857042879,-500.0,0.00039681,41]
[393618097,1762857042889,-500.0,0.00039681,41]
[393618098,1762857042898,-150.0,0.00039681,41]
[393618099,1762857042908,-500.0,0.00039681,41]
[393618100,1762857042917,-150.0,0.00039681,41]
[393618101,1762857042927,-150.0,0.00039681,41]
[393618102,1762857042937,-500.0,0.00039681,41]
[393618103,1762857042946,-150.0,0.00039681,41]
[393618104,1762857042956,-500.0,0.00039681,41]
[393618105,1762857042966,-150.0,0.00039681,41]
[393618106,1762857042976,-150.0,0.00039681,41]
[393618107,1762857042985,-500.0,0.00039681,41]
[393618108,1762857042995,-500.0,0.00039681,23]
[393618109,1762857043005,-150.0,0.00039681,41]
[393618110,1762857043015,-150.0,0.00039681,41]
[393618111,1762857043025,-151.0272472,0.00039681,41]
[393618112,1762857043034,-150.0,0.00039681,41]
[393618113,1762857043047,-150.21338972,0.00039681,41]
[393618114,1762857043057,-150.0,0.00039681,41]
[393618115,1762857043068,-159.48620506,0.00039681,41]
[393618116,1762857043077,-253.18593022,0.00039681,41]
[393618117,1762857043089,-150.0,0.00039681,41]
[393618118,1762857043098,-150.0,0.00039681,41]
[393618119,1762857043109,-150.0,0.00039681,41]
[393618120,1762857043119,-150.47221411,0.00039681,41]
[393618121,1762857043130,-150.0,0.00039681,41]
[393618122,1762857043139,-150.0,0.00039681,41]
[393618123,1762857043149,-150.0,0.00039681,41]
[393618124,1762857043159,-150.0,0.00039681,41]
[393618125,1762857043169,-151.18066165,0.00039681,41]
[393618126,1762857043178,-150.0,0.00039681,41]
[393618127,1762857043188,-150.0,0.00039681,41]
[393618128,1762857043198,-500.0,0.00039681,41]
[393618129,1762857043208,-500.0,0.00039681,2]
[393618130,1762857043217,-150.0,0.00039681,41]
[393618131,1762857043226,-500.0,0.00039681,2]
[393618132,1762857043236,-500.0,0.00039681,41]
[393618133,1762857043246,-500.0,0.00039681,41]
[393618134,1762857043256,-150.0,0.00039681,41]
[393618135,1762857043266,-150.0,0.00039681,2]
[393618136,1762857043276,-500.0,0.00039681,41]
[393618137,1762857043286,-150.0,0.00039681,2]
[393618138,1762857043297,-150.0,0.00039681,41]
[393618139,1762857043307,-500.0,0.00039681,41]
[393618140,1762857043316,-150.0,0.00039681,2]
[393618141,1762857043327,-150.0,0.00039681,41]
[393618142,1762857043337,-150.0,0.00039681,2]
[393618143,1762857043346,-500.0,0.00039681,41]
[393618144,1762857043357,-500.0,0.00039681,41]
[393618145,1762857043367,-543.64087408,0.00039687,2]
[393618146,1762857043379,-537.0,0.00039699,120]
[393618147,1762857043390,-150.0,0.000397,22]
[393618148,1762857043400,-150.0,0.000397,120]
[393618149,1762857043411,-447.0,0.000397,2]
[393618150,1762857043420,-300.0,0.000397,14]
[393618151,1762857043430,-184.12,0.000397,40]
[393618153,1762857043440,-300.0,0.00039704,2]
[393618154,1762857043450,-300.0,0.00039708,2]
[393618155,1762857043460,-300.0,0.00039708,2]
[393618156,1762857043470,-151.22192366,0.00039712,7]
[393618157,1762857043479,-1000.0,0.00039713,7]
[393618158,1762857043489,-1000.0,0.00039715,7]
[393618159,1762857043498,-611.0,0.0003972,7]
[393618160,1762857043507,-117136.9929596,0.00039721,2]
[393618161,1762857043517,-340009.2179707,0.00039721,2]
[393618163,1762857043527,-7155.5891718,0.00039721,2]
[393618165,1762857043537,-151.0,0.00039724,14]
[393618166,1762857043547,-300.0,0.00039725,2]
[393618169,1762857043556,-151.0,0.00039725,14]
[393618171,1762857043566,-309.06025452,0.00039726,5]
[393618173,1762857043575,-200.0,0.00039727,2]
[393618174,1762857043585,-151.0,0.00039727,90]
[393618175,1762857043594,-151.0,0.00039727,90]
[393618176,1762857043603,-151.0,0.00039727,120]
[393618177,1762857043612,-165.22064,0.00039727,120]
[393618178,1762857043622,-151.0,0.00039727,120]
[393618179,1762857043631,-151.0,0.00039727,120]
[393618180,1762857043641,-153.719565,0.00039727,120]
[393618181,1762857043650,-151.0,0.00039727,120]
[393618182,1762857043660,-151.0,0.00039727,120]
[393618183,1762857043670,-151.0,0.00039727,120]
[393618184,1762857043679,-151.0,0.00039727,120]
[393618185,1762857043689,-151.0,0.00039727,120]
[393618186,1762857043698,-151.0,0.00039727,120]
[393618187,1762857043708,-151.0,0.00039727,120]
[393618188,1762857043717,-249.919254,0.00039727,120]
[393618189,1762857043726,-151.0,0.00039727,120]
[393618190,1762857043736,-151.0,0.00039727,120]
[393618191,1762857043746,-151.0,0.00039727,120]
[393618192,1762857043755,-151.0,0.00039727,120]
[393618193,1762857043765,-151.0,0.00039727,120]
[393618194,1762857043774,-151.0,0.00039727,120]
[393618195,1762857043784,-155.669049,0.00039727,120]
[393618196,1762857043793,-151.0,0.00039727,120]
[393618197,1762857043803,-151.0,0.00039727,120]
[393618198,1762857043812,-151.0,0.00039727,120]
[393618199,1762857043822,-151.0,0.00039727,120]
[393618200,1762857043831,-296.039985,0.00039727,120]
[393618201,1762857043841,-156.996904,0.00039727,120]
[393618202,1762857043851,-151.0,0.00039727,120]
[393618203,1762857043860,-151.0,0.00039727,120]
[393618204,1762857043869,-151.0,0.00039727,120]
[393618205,1762857043879,-151.0,0.00039727,120]
[393618206,1762857043888,-151.0,0.00039727,120]
[393618207,1762857043898,-151.0,0.00039727,120]
[393618208,1762857043907,-151.0,0.00039727,120]
[393618209,1762857043917,-153.470548,0.00039727,120]
[393618210,1762857043927,-151.0,0.00039727,120]
[393618211,1762857043935,-151.0,0.00039727,120]
[393618212,1762857043943,-151.0,0.00039727,120]
[393618213,1762857043952,-151.0,0.00039727,120]
[393618214,1762857043961,-151.0,0.00039727,120]
[393618215,1762857043969,-238.651078,0.00039727,120]
[393618216,1762857043979,-151.0,0.00039727,120]
[393618217,1762857043990,-151.0,0.00039727,120]
[393618218,1762857043999,-152.698772,0.00039727,120]
[393618219,1762857044009,-154.870085,0.00039727,120]
[393618220,1762857044019,-152.956912,0.00039727,120]
[393618221,1762857044029,-208.928791,0.00039727,2]
[393618222,1762857044039,-208.928791,0.00039727,2]
[393618223,1762857044051,-208.928791,0.00039727,2]
[393618224,1762857044061,-208.928791,0.00039727,2]
[393618225,1762857044072,-208.928791,0.00039727,2]
[393618226,1762857044082,-208.928791,0.00039727,2]
[393618227,1762857044091,-208.928791,0.00039727,2]
[393618228,1762857044101,-208.928791,0.00039727,2]
[393618229,1762857044110,-208.928791,0.00039727,2]
[393618230,1762857044120,-208.928791,0.00039727,2]
[393618231,1762857044131,-208.928791,0.00039727,2]
[393618232,1762857044140,-208.928791,0.00039727,2]
[393618233,1762857044149,-208.928791,0.00039727,2]
[393618234,1762857044159,-208.928791,0.00039727,2]
[393618235,1762857044168,-208.928791,0.00039727,2]
[393618236,1762857044178,-208.928791,0.00039727,2]
[393618237,1762857044188,-208.928791,0.00039727,2]
[393618238,1762857044197,-208.928791,0.00039727,2]
[393618239,1762857044207,-151.0,0.00039727,120]
[393618240,1762857044216,-208.928791,0.00039727,2]
[393618241,1762857044226,-151.0,0.00039727,120]
[393618242,1762857044236,-208.928792,0.00039727,2]
[393618243,1762857044245,-151.0,0.00039727,120]
[393618244,1762857044255,-151.0,0.00039727,120]
[393618245,1762857044264,-151.0,0.00039727,120]
[393618246,1762857044273,-151.0,0.00039727,120]
[393618247,1762857044283,-151.0,0.00039727,120]
[393618248,1762857044293,-151.0,0.00039727,120]
[393618249,1762857044302,-151.0,0.00039727,120]
[393618250,1762857044312,-151.0,0.00039727,120]
[393618251,1762857044321,-229.219419,0.00039727,120]
[393618252,1762857044331,-175.796118,0.00039727,120]
[393618253,1762857044341,-151.0,0.00039727,120]
[393618254,1762857044350,-151.0,0.00039727,120]
[393618255,1762857044359,-151.0,0.00039727,120]
[393618256,1762857044369,-152.824271,0.00039727,120]
[393618257,1762857044378,-151.0,0.00039727,120]
[393618258,1762857044388,-285.91276,0.00039727,120]
[393618259,1762857044397,-151.0,0.00039727,120]
[393618260,1762857044407,-151.0,0.00039727,120]
[393618261,1762857044416,-151.0,0.00039727,120]
[393618262,1762857044426,-151.0,0.00039727,120]
[393618263,1762857044435,-151.0,0.00039727,120]
[393618264,1762857044444,-151.0,0.00039727,120]
[393618265,1762857044454,-279.284647,0.00039727,120]
[393618266,1762857044463,-151.0,0.00039727,120]
[393618267,1762857044472,-151.0,0.00039727,120]
[393618268,1762857044481,-151.0,0.00039727,120]
[393618269,1762857044491,-151.0,0.00039727,120]
[393618270,1762857044501,-206.079187,0.00039727,120]
[393618271,1762857044511,-204.058339,0.00039727,120]
[393618272,1762857044522,-151.0,0.00039727,120]
[393618273,1762857044531,-162.998621,0.00039727,120]
[393618274,1762857044541,-151.0,0.00039727,120]
[393618275,1762857044551,-151.0,0.00039727,120]
[393618276,1762857044560,-151.0,0.00039727,120]
[393618277,1762857044571,-151.0,0.00039727,120]
[393618278,1762857044712,-151.0,0.00039727,120]
[393618279,1762857044723,-151.0,0.00039727,120]
[393618280,1762857044733,-151.0,0.00039727,120]
[393618281,1762857044742,-151.0,0.00039727,120]
[393618282,1762857044751,-151.0,0.00039727,120]
[393618283,1762857044760,-151.0,0.00039727,120]
[393618284,1762857044769,-185.1304,0.00039727,120]
[393618285,1762857044778,-151.0,0.00039727,120]
[393618286,1762857044787,-162.368071,0.00039727,120]
[393618287,1762857044797,-151.0,0.00039727,120]
[393618288,1762857044806,-151.0,0.00039727,120]
[393618289,1762857044815,-151.0,0.00039727,120]
[393618290,1762857044824,-157.842751,0.00039727,120]
[393618291,1762857044833,-151.0,0.00039727,120]
[393618292,1762857044843,-151.0,0.00039727,120]
[393618293,1762857044852,-151.0,0.00039727,120]
[393618294,1762857044861,-153.208999,0.00039727,120]
[393618295,1762857044872,-151.0,0.00039727,120]
[393618296,1762857044882,-151.0,0.00039727,120]
[393618297,1762857044891,-151.0,0.00039727,120]
[393618298,1762857044904,-151.0,0.00039727,120]
[393618299,1762857044913,-151.0,0.00039727,120]
[393618300,1762857044923,-151.0,0.00039727,120]
[393618301,1762857044932,-151.0,0.00039727,120]
[393618302,1762857044942,-151.0,0.00039727,120]
[393618303,1762857044952,-151.0,0.00039727,120]
[393618304,1762857044961,-151.0,0.00039727,120]
[393618305,1762857044971,-151.0,0.00039727,120]
[393618306,1762857044980,-151.0,0.00039727,120]
[393618307,1762857044990,-151.0,0.00039727,120]
[393618308,1762857045000,-151.0,0.00039727,120]
[393618309,1762857045009,-176.861987,0.00039727,120]
[393618310,1762857045019,-174.561151,0.00039727,120]
[393618311,1762857045028,-151.0,0.00039727,120]
[393618312,1762857045037,-151.0,0.00039727,120]
[393618313,1762857045049,-151.0,0.00039727,120]
[393618314,1762857045057,-194.579444,0.00039727,120]
[393618315,1762857045067,-152.0,0.00039727,7]
[393618316,1762857045076,-151.0,0.00039727,120]
[393618317,1762857045086,-158.47328,0.00039727,120]
[393618318,1762857045095,-236.062878,0.00039727,120]
[393618319,1762857045105,-151.0,0.00039727,120]
[393618320,1762857045113,-156.139867,0.00039727,120]
[393618321,1762857045124,-151.0,0.00039727,120]
[393618322,1762857045134,-151.0,0.00039727,120]
[393618323,1762857045143,-151.0,0.00039727,120]
[393618324,1762857045152,-151.0,0.00039727,30]
[393618325,1762857045161,-245.775424,0.00039727,120]
[393618326,1762857045170,-156.350601,0.00039727,30]
[393618327,1762857045179,-172.56994193,0.00039727,120]
[393618328,1762857045189,-151.0,0.00039727,120]
[393618329,1762857045198,-151.0,0.00039727,120]
[393618330,1762857045207,-151.0,0.00039727,120]
[393618331,1762857045216,-151.0,0.00039727,120]
[393618332,1762857045226,-151.0,0.00039727,120]
[393618333,1762857045235,-151.0,0.00039727,120]
[393618334,1762857045244,-151.0,0.00039727,120]
[393618335,1762857045252,-151.0,0.00039727,120]
[393618336,1762857045261,-166.501391,0.00039727,120]
[393618337,1762857045271,-151.0,0.00039727,120]
[393618338,1762857045281,-151.0,0.00039727,120]
[393618339,1762857045290,-151.0,0.00039727,120]
[393618340,1762857045299,-240.414561,0.00039727,120]
[393618341,1762857045308,-151.0,0.00039727,14]
[393618342,1762857045317,-152.546117,0.00039727,120]
[393618343,1762857045326,-151.0,0.00039727,14]
[393618344,1762857045335,-151.0,0.00039727,14]
[393618345,1762857045344,-151.0,0.00039727,14]
[393618346,1762857045353,-151.0,0.00039727,14]
[393618347,1762857045362,-151.0,0.00039727,14]
[393618348,1762857045371,-151.0,0.00039727,120]
[393618349,1762857045380,-151.0,0.00039727,14]
[393618350,1762857045389,-151.0,0.00039727,120]
[393618351,1762857045399,-151.0,0.00039727,14]
[393618352,1762857045407,-151.0,0.00039727,120]
[393618353,1762857045416,-151.0,0.00039727,14]
[393618354,1762857045426,-151.0,0.00039727,14]
[393618355,1762857045434,-151.0,0.00039727,120]
[393618356,1762857045444,-157.855366,0.00039727,120]
[393618357,1762857045459,-219.969981,0.00039727,120]
[393618358,1762857045468,-153.145943,0.00039727,14]
[393618359,1762857045478,-151.0,0.00039727,120]
[393618360,1762857045487,-170.165682,0.00039727,120]
[393618361,1762857045496,-151.0,0.00039727,120]
[393618362,1762857045506,-153.123438,0.00039727,120]
[393618363,1762857045515,-173.110584,0.00039727,120]
[393618364,1762857045525,-151.0,0.00039727,120]
[393618365,1762857045534,-151.0,0.00039727,120]
[393618366,1762857045543,-151.0,0.00039727,120]
[393618368,1762857045553,-151.0,0.00039727,120]
[393618370,1762857045562,-151.0,0.00039727,120]
[393618371,1762857045571,-151.0,0.00039727,120]
[393618372,1762857045580,-151.0,0.00039727,120]
[393618373,1762857045589,-151.0,0.00039727,120]
[393618374,1762857045598,-151.0,0.00039727,120]
[393618375,1762857045607,-230.64018831,0.00039727,120]
[393618376,1762857045616,-205.930075,0.00039727,7]
[393618377,1762857045625,-151.0,0.00039727,120]
[393618378,1762857045634,-205.930075,0.00039727,7]
[393618379,1762857045643,-151.0,0.00039727,120]
[393618380,1762857045652,-151.0,0.00039727,120]
[393618381,1762857045661,-205.930075,0.00039727,7]
[393618382,1762857045671,-266.888997,0.00039727,120]
[393618383,1762857045681,-151.0,0.00039727,120]